bitfinex/quotes_BTCUSD_20241205
["timestamp","ask_amount","ask_price","bid_price","bid_amount"]
[1733415257102,0.10167605,101550.0,101540.0,0.0197338]
[1733415257319,0.10266019,101550.0,101540.0,0.0107338]
[1733415257527,0.10566019,101550.0,101540.0,0.0107338]
[1733415257751,0.10166019,101550.0,101540.0,0.0107338]
[1733415257970,0.29860719,101550.0,101540.0,0.0107338]
[1733415258196,0.29762305,101550.0,101540.0,0.0117338]
[1733415258428,0.10067605,101550.0,101540.0,0.0117338]
[1733415258662,0.10066019,101550.0,101540.0,0.0027338]
[1733415258883,0.10066019,101550.0,101540.0,0.0057338]
[1733415259341,0.10066019,101550.0,101540.0,0.0027338]
[1733415259579,0.29760719,101550.0,101540.0,0.0027338]
[1733415259793,0.29762305,101550.0,101540.0,0.0097338]
[1733415260063,0.29762305,101550.0,101540.0,0.0087338]
[1733415260259,0.29662305,101550.0,101540.0,0.0017338]
[1733415260459,0.29862305,101550.0,101540.0,0.0017338]
[1733415260689,0.29662305,101550.0,101540.0,0.0067338]
[1733415260916,0.29662305,101550.0,101540.0,0.0087338]
[1733415261600,0.09967605,101550.0,101540.0,0.0087338]
[1733415261804,0.10066019,101550.0,101540.0,0.0017338]
[1733415262275,0.10166019,101550.0,101540.0,0.0087338]
[1733415262511,0.29860719,101550.0,101540.0,0.0087338]
[1733415262741,0.29662305,101550.0,101540.0,0.0017338]
[1733415262969,0.29662305,101550.0,101540.0,0.0067338]
[1733415263182,0.62810781,101550.0,101540.0,0.0067338]
[1733415263392,0.22947605,101550.0,101540.0,0.0067338]
[1733415263836,0.003,101550.0,101540.0,0.0067338]
[1733415264079,0.0008669,101560.0,101540.0,0.1840038]
[1733415264314,0.0008669,101560.0,101540.0,0.36225058]
[1733415264532,0.0008669,101560.0,101540.0,0.69422661]
[1733415264533,0.009,101550.0,101540.0,0.69422661]
[1733415264719,0.009,101550.0,101540.0,0.53488343]
[1733415264941,0.0008669,101560.0,101540.0,0.53388343]
[1733415265186,0.0008669,101560.0,101550.0,0.177252]
[1733415265662,0.0008669,101560.0,101540.0,0.53488043]
[1733415265879,0.001,101550.0,101540.0,0.53488043]
[1733415266318,0.0008669,101560.0,101540.0,0.53488043]
[1733415266540,0.0018669,101560.0,101550.0,0.33802137]
[1733415266751,0.0018669,101560.0,101550.0,0.43671281]
[1733415267384,0.0018669,101560.0,101550.0,0.53671281]
[1733415267587,0.0018669,101560.0,101550.0,0.68269375]
[1733415267810,0.51943787,101610.0,101580.0,0.177197]
[1733415268051,0.81594592,101610.0,101580.0,0.177197]
[1733415268260,0.25144495,101600.0,101560.0,0.177226]
[1733415268468,0.196879,101590.0,101550.0,0.30041605]
[1733415268747,0.00098414,101580.0,101560.0,0.177227]
[1733415269404,0.00098414,101580.0,101560.0,0.362453]
[1733415269842,0.00098414,101580.0,101560.0,0.185226]
[1733415270051,0.00098414,101580.0,101560.0,0.177226]
[1733415270309,0.0008665,101590.0,101570.0,0.27787756]
[1733415270564,0.0008665,101590.0,101580.0,0.1772]
[1733415271177,0.0008665,101590.0,101560.0,0.358449]
[1733415271401,0.001,101580.0,101560.0,0.47792901]
[1733415271669,0.001,101580.0,101560.0,0.19702696]
[1733415271863,0.0008665,101590.0,101570.0,0.177217]
[1733415272078,0.29741255,101590.0,101560.0,0.54247396]
[1733415272295,0.29741255,101590.0,101580.0,0.005]
[1733415272733,0.49429555,101590.0,101560.0,0.36524896]
[1733415272952,0.49429555,101590.0,101580.0,0.001]
[1733415273583,0.10954255,101590.0,101580.0,0.002]
[1733415273835,0.0008665,101590.0,101580.0,0.1772]
[1733415274714,0.0088665,101590.0,101580.0,0.1782]
[1733415274975,0.0088665,101590.0,101580.0,0.17721323]
[1733415275179,0.0088665,101590.0,101580.0,0.27688928]
[1733415275605,0.0088665,101590.0,101580.0,0.30467599]
[1733415275820,0.0088665,101590.0,101580.0,0.27688928]
[1733415276031,0.0008665,101590.0,101580.0,0.43567404]
[1733415276230,0.0008665,101590.0,101580.0,0.44467404]
[1733415276450,0.0018665,101590.0,101580.0,0.47236325]
[1733415276884,0.0018665,101590.0,101580.0,0.58686325]
[1733415277112,0.0018665,101590.0,101580.0,0.55917404]
[1733415277339,0.0018665,101590.0,101580.0,0.018]
[1733415277564,0.1987355,101590.0,101580.0,0.018]
[1733415278267,0.0018665,101590.0,101580.0,0.018]
[1733415278696,0.0018665,101590.0,101580.0,0.10867605]
[1733415278921,0.1239656,101620.0,101580.0,0.43856074]
[1733415279137,0.12494974,101620.0,101600.0,0.354316]
[1733415279375,0.12494974,101620.0,101600.0,0.354304]
[1733415279602,0.42143779,101620.0,101580.0,0.01089993]
[1733415279856,0.196852,101600.0,101580.0,0.19308993]
[1733415280036,0.196859,101600.0,101580.0,0.014]
[1733415280238,0.393721,101600.0,101580.0,0.005]
[1733415280481,0.19785314,101590.0,101580.0,0.005]
[1733415280673,0.272169,101590.0,101580.0,0.005]
[1733415280876,0.0753,101590.0,101580.0,0.005]
[1733415281086,0.07628414,101590.0,101580.0,0.005]
[1733415281301,0.07628414,101590.0,101570.0,0.36540349]
[1733415281748,0.27315614,101590.0,101570.0,0.01096949]
[1733415281997,0.07628414,101590.0,101570.0,0.18818649]
[1733415282219,0.07628414,101590.0,101570.0,0.36540249]
[1733415282451,0.07628414,101590.0,101580.0,0.005]
[1733415282889,0.07628414,101590.0,101580.0,0.009]
[1733415283105,0.07628414,101590.0,101570.0,0.37240249]
[1733415283332,0.27315414,101590.0,101570.0,0.19918549]
[1733415283772,0.27315414,101590.0,101570.0,0.19518549]
[1733415284470,0.27315414,101590.0,101570.0,0.18818549]
[1733415284674,0.27315414,101590.0,101580.0,0.004]
[1733415284902,0.27217,101590.0,101580.0,0.004]
[1733415285148,0.0753,101590.0,101580.0,0.1812]
[1733415285436,0.0753,101590.0,101570.0,0.180203]
[1733415285633,0.07628414,101590.0,101570.0,0.18718739]
[1733415285874,0.07628414,101590.0,101580.0,0.1772]
[1733415286303,0.08028414,101590.0,101580.0,0.1772]
[1733415286533,0.00498414,101590.0,101570.0,0.531617]
[1733415286756,0.00498414,101590.0,101580.0,0.1772]
[1733415287175,0.29837769,101600.0,101580.0,0.1772]
[1733415287609,0.00498414,101590.0,101570.0,0.53162]
[1733415287813,0.00498414,101590.0,101580.0,0.003]
[1733415288026,0.20185314,101590.0,101580.0,0.003]
[1733415288250,0.004,101590.0,101570.0,0.36569351]
[1733415288462,0.00498414,101590.0,101580.0,0.003]
[1733415288890,0.00098414,101590.0,101580.0,0.003]
[1733415289180,0.00098414,101590.0,101570.0,0.36569251]
[1733415289374,0.00098414,101590.0,101580.0,0.003]
[1733415289804,0.00498414,101590.0,101580.0,0.003]
[1733415290235,0.25015314,101590.0,101580.0,0.003]
[1733415290438,0.77764903,101590.0,101580.0,0.003]
[1733415290668,0.77764903,101590.0,101540.0,0.001733]
[1733415290669,0.196898,101580.0,101550.0,0.354483]
[1733415290902,0.441182,101560.0,101540.0,0.001733]
[1733415291138,0.00098414,101550.0,101540.0,0.001733]
[1733415291344,0.00098414,101550.0,101540.0,0.179003]
[1733415291583,0.00098414,101550.0,101540.0,0.001733]
[1733415291790,0.19793114,101550.0,101540.0,0.0126213]
[1733415291988,0.19793114,101550.0,101540.0,0.001733]
[1733415292229,0.19793114,101550.0,101540.0,0.179003]
[1733415292230,0.00098414,101550.0,101540.0,0.179003]
[1733415292457,0.0486,101580.0,101560.0,0.177235]
[1733415292683,0.0486,101580.0,101570.0,0.177217]
[1733415293167,0.34614919,101580.0,101560.0,0.0017332]
[1733415293409,0.29756819,101570.0,101560.0,0.0017332]
[1733415293636,0.52516881,101570.0,101560.0,0.0017332]
[1733415293876,0.52516881,101570.0,101560.0,0.0027332]
[1733415294087,0.52516881,101570.0,101560.0,0.0017332]
[1733415294345,0.76858803,101570.0,101560.0,0.0017332]
[1733415294846,0.86858803,101570.0,101560.0,0.0017332]
[1733415295067,0.77066881,101570.0,101560.0,0.0017332]
[1733415295460,0.67066881,101570.0,101560.0,0.0017332]
[1733415295674,0.67166881,101570.0,101560.0,0.0017332]
[1733415296119,0.77166881,101570.0,101560.0,0.0017332]
[1733415296331,0.67166881,101570.0,101560.0,0.0017332]
[1733415296558,0.86958803,101570.0,101560.0,0.0017332]
[1733415296774,0.87858803,101570.0,101560.0,0.0027332]
[1733415297004,0.87858803,101570.0,101510.0,0.02001598]
[1733415297240,0.196966,101540.0,101510.0,0.12067694]
[1733415297460,0.196966,101540.0,101520.0,0.177304]
[1733415297693,0.39394,101540.0,101520.0,0.177304]
[1733415297895,0.196966,101540.0,101520.0,0.177304]
[1733415298120,0.196966,101540.0,101510.0,0.47431103]
[1733415298516,0.196966,101540.0,101520.0,0.177302]
[1733415299114,0.44843095,101530.0,101520.0,0.007]
[1733415299295,0.52634681,101530.0,101520.0,0.007]
[1733415300853,0.53334681,101530.0,101520.0,0.001]
[1733415301083,0.52634681,101530.0,101500.0,0.01262218]
[1733415301320,0.39502514,101520.0,101500.0,0.01262218]
[1733415301529,0.197024,101510.0,101500.0,0.01262218]
[1733415301772,0.49268481,101510.0,101500.0,0.0017344]
[1733415301959,0.34190005,101510.0,101500.0,0.0017344]
[1733415302476,0.14487605,101510.0,101500.0,0.0017344]
[1733415302733,0.59232404,101530.0,101520.0,0.001]
[1733415302734,0.527087,101530.0,101520.0,0.001]
[1733415302940,0.22377605,101530.0,101500.0,0.1742104]
[1733415303189,0.625314,101550.0,101520.0,0.167454]
[1733415303401,0.09967605,101540.0,101520.0,0.167454]
[1733415303625,0.09967605,101540.0,101520.0,0.502342]
[1733415303833,0.00098414,101540.0,101520.0,0.167444]
[1733415304463,0.002,101530.0,101520.0,0.335888]
[1733415304976,0.009,101550.0,101540.0,0.167421]
[1733415305226,0.009,101550.0,101540.0,0.1684057]
[1733415305415,0.009,101550.0,101540.0,0.16840564]
[1733415305668,0.009,101550.0,101540.0,0.167421]
[1733415305878,0.09967605,101550.0,101520.0,0.16744]
[1733415306206,0.00098414,101540.0,101520.0,0.16744]
[1733415306421,0.003,101540.0,101520.0,0.34260411]
[1733415306578,0.10066019,101550.0,101530.0,0.167438]
[1733415306826,0.09967605,101540.0,101520.0,0.0067332]
[1733415307082,0.29763205,101550.0,101520.0,0.1741782]
[1733415307297,0.49359105,101550.0,101520.0,0.3416252]
[1733415307574,0.49359105,101550.0,101520.0,0.3366252]
[1733415307575,0.69055005,101550.0,101520.0,0.3366252]
[1733415307726,0.001,101540.0,101520.0,0.3416252]
[1733415307955,0.001,101540.0,101520.0,0.1741782]
[1733415308237,0.00198414,101540.0,101520.0,0.5090662]
[1733415308462,0.00198414,101540.0,101530.0,0.167438]
[1733415308463,0.001,101540.0,101530.0,0.167438]
[1733415308664,0.10066019,101550.0,101530.0,0.167438]
[1733415308987,0.10066019,101550.0,101530.0,0.334876]
[1733415309357,0.48833367,101580.0,101540.0,0.00098471]
[1733415309358,0.17095791,101580.0,101540.0,0.00098471]
[1733415309714,0.17095791,101580.0,101530.0,0.25046081]
[1733415309715,0.10066019,101570.0,101530.0,0.26711205]
[1733415310030,0.66442196,101580.0,101550.0,0.334786]
[1733415310939,0.00098414,101570.0,101540.0,0.6212545]
[1733415311262,0.00398414,101570.0,101540.0,0.4538335]
[1733415311417,0.00398414,101570.0,101550.0,0.334809]
[1733415311623,0.00398414,101570.0,101560.0,0.167388]
[1733415311870,0.00398414,101570.0,101550.0,0.334801]
[1733415312009,0.00398414,101570.0,101550.0,0.334802]
[1733415312248,0.00398414,101570.0,101550.0,0.334794]
[1733415312447,0.00098414,101570.0,101550.0,0.334794]
[1733415312689,0.00098414,101570.0,101550.0,0.168397]
[1733415312875,0.00098414,101570.0,101540.0,0.4538345]
[1733415313099,0.00098414,101570.0,101560.0,0.167388]
[1733415313471,0.0008666,101590.0,101580.0,0.167355]
[1733415313670,0.0008666,101590.0,101580.0,0.31813976]
[1733415313817,0.0008666,101590.0,101580.0,0.41781581]
[1733415314055,0.0008666,101590.0,101580.0,0.167355]
[1733415314275,0.0008666,101590.0,101570.0,0.334718]
[1733415314508,0.00185074,101590.0,101570.0,0.334718]
[1733415314756,0.00185074,101590.0,101570.0,0.50208]
[1733415314954,0.00185074,101590.0,101570.0,0.334718]
[1733415315169,0.00185074,101590.0,101580.0,0.009]
[1733415315630,0.37849579,101590.0,101580.0,0.009]
[1733415315837,0.0018666,101590.0,101580.0,0.009]
[1733415316125,0.0018666,101590.0,101580.0,0.32713976]
[1733415316573,0.0018666,101590.0,101580.0,0.34072041]
[1733415316780,0.0018666,101590.0,101580.0,0.44039646]
[1733415316983,0.0018666,101590.0,101580.0,0.2896117]
[1733415317198,0.0018666,101590.0,101580.0,0.18993565]
[1733415317640,0.0018666,101590.0,101580.0,0.34170467]
[1733415317841,0.0018666,101590.0,101580.0,0.44039646]
[1733415318249,0.0018666,101590.0,101580.0,0.44939646]
[1733415319529,0.0018666,101590.0,101580.0,0.59939646]
[1733415320010,0.0018666,101590.0,101580.0,0.4486117]
[1733415320607,0.0018666,101590.0,101580.0,0.59939646]
[1733415322278,0.0018666,101590.0,101580.0,0.61944284]
[1733415322496,0.0008666,101590.0,101580.0,0.60144284]
[1733415322716,0.0008666,101590.0,101580.0,0.70144284]
[1733415322918,0.0018666,101590.0,101580.0,0.73813205]
[1733415323136,1e-06,101590.0,101580.0,0.83813205]
[1733415323424,0.0008656,101620.0,101600.0,0.267315]
[1733415323655,0.0008656,101620.0,101610.0,0.3514447]
[1733415323858,0.0008656,101620.0,101610.0,0.54545602]
[1733415324983,0.1252672,101650.0,101610.0,0.51776681]
[1733415325213,0.1252672,101650.0,101640.0,0.167256]
[1733415326015,0.12625134,101650.0,101640.0,0.167256]
[1733415326216,0.42269239,101650.0,101620.0,0.334558]
[1733415326466,0.00098414,101640.0,101620.0,0.334558]
[1733415326687,0.00098414,101640.0,101630.0,0.167273]
[1733415327303,0.00098414,101640.0,101620.0,0.334557]
[1733415327518,0.00098414,101640.0,101620.0,0.18131253]
[1733415327746,0.00098414,101640.0,101620.0,0.14716768]
[1733415327975,0.00098414,101640.0,101630.0,0.005]
[1733415328144,0.1252672,101650.0,101640.0,0.167256]
[1733415328375,0.0008672,101650.0,101640.0,0.167256]
[1733415328562,2e-07,101650.0,101640.0,0.66948538]
[1733415328781,0.1217868,101660.0,101640.0,1.13445746]
[1733415328988,0.10197268,101660.0,101650.0,0.41868438]
[1733415329248,0.10197268,101660.0,101650.0,0.41770081]
[1733415330722,0.10197268,101660.0,101650.0,0.42670081]
[1733415332544,0.10197268,101660.0,101650.0,0.43570081]
[1733415332753,0.10197268,101660.0,101650.0,0.52670081]
[1733415333300,0.10197268,101660.0,101650.0,0.53570081]
[1733415333521,0.10197268,101660.0,101650.0,0.52670081]
[1733415333734,0.10197268,101660.0,101650.0,0.53570081]
[1733415333966,0.10197268,101660.0,101650.0,0.63570081]
[1733415334186,0.0008653,101680.0,101670.0,0.15078476]
[1733415334420,0.0008653,101680.0,101670.0,0.25144412]
[1733415334622,0.0008653,101680.0,101670.0,0.25046081]
[1733415334827,0.0008653,101680.0,101670.0,0.44926441]
[1733415335509,0.0008653,101680.0,101670.0,0.45826441]
[1733415335733,0.000865,101690.0,101670.0,1.04345017]
[1733415335968,0.000865,101690.0,101680.0,0.28304065]
[1733415336155,0.000865,101690.0,101680.0,0.44924841]
[1733415336397,0.000865,101690.0,101680.0,0.60003317]
[1733415336853,0.000865,101690.0,101680.0,0.167191]
[1733415337751,0.000865,101690.0,101670.0,0.009]
[1733415337752,0.34701019,101690.0,101670.0,0.009]
[1733415337943,0.34701019,101690.0,101670.0,0.176198]
[1733415337944,0.15032519,101690.0,101670.0,0.176198]
[1733415338180,0.049665,101690.0,101680.0,0.16817448]
[1733415338401,0.05064914,101690.0,101670.0,0.334397]
[1733415338621,0.05064914,101690.0,101680.0,0.018]
[1733415338849,0.049665,101690.0,101680.0,0.176191]
[1733415339739,0.00184914,101690.0,101680.0,0.176191]
[1733415339962,0.000865,101690.0,101680.0,0.17717441]
[1733415340462,0.000865,101690.0,101680.0,0.16817441]
[1733415340681,0.000865,101690.0,101680.0,0.167191]
[1733415340942,0.000865,101690.0,101670.0,0.34841363]
[1733415341172,0.0484,101680.0,101670.0,0.01402063]
[1733415341417,0.0484,101680.0,101670.0,0.18822763]
[1733415341663,0.0484,101680.0,101670.0,0.174207]
[1733415342815,0.0484,101680.0,101670.0,0.009]
[1733415343033,0.00184914,101690.0,101680.0,0.167191]
[1733415343707,0.000865,101690.0,101680.0,0.167191]
[1733415343948,0.00184914,101690.0,101670.0,0.343405]
[1733415344165,0.19852614,101690.0,101670.0,0.176199]
[1733415344407,0.000865,101690.0,101680.0,0.005]
[1733415344649,0.00184914,101690.0,101680.0,0.005]
[1733415344896,0.29820119,101690.0,101680.0,0.005]
[1733415345108,0.081065,101690.0,101680.0,0.005]
[1733415345386,0.08204914,101690.0,101680.0,0.005]
[1733415346056,0.08304914,101690.0,101680.0,0.001]
[1733415346257,0.08304914,101690.0,101670.0,0.501589]
[1733415346258,0.08204914,101690.0,101670.0,0.508589]
[1733415346489,0.08204914,101690.0,101670.0,0.34139]
[1733415346659,0.08304914,101690.0,101670.0,0.33439]
[1733415346910,0.08204914,101690.0,101670.0,0.33439]
[1733415347124,0.08204914,101690.0,101680.0,0.005]
[1733415347359,0.27872514,101690.0,101680.0,0.005]
[1733415347566,0.277741,101690.0,101670.0,0.334401]
[1733415347775,0.081065,101690.0,101670.0,0.174194]
[1733415347985,0.57510019,101690.0,101670.0,0.007]
[1733415348213,0.00098414,101680.0,101670.0,0.007]
[1733415348684,0.081065,101690.0,101670.0,0.174207]
[1733415348938,0.08204914,101690.0,101670.0,0.341407]
[1733415349122,0.08304914,101690.0,101670.0,0.501604]
[1733415349317,0.081065,101690.0,101680.0,0.167191]
[1733415349533,0.081065,101690.0,101680.0,0.170191]
[1733415349762,0.08204914,101690.0,101680.0,0.003]
[1733415349980,0.08204914,101690.0,101670.0,0.334395]
[1733415350201,0.27872514,101690.0,101670.0,0.172197]
[1733415350434,0.081065,101690.0,101670.0,0.172197]
[1733415350635,0.08204914,101690.0,101670.0,0.172197]
[1733415350858,0.27872614,101690.0,101670.0,0.167197]
[1733415351055,0.082065,101690.0,101670.0,0.334397]
[1733415351290,0.08304914,101690.0,101670.0,0.334397]
[1733415351500,0.08304914,101690.0,101680.0,0.167191]
[1733415351501,0.082065,101690.0,101680.0,0.167191]
[1733415351734,0.082065,101690.0,101670.0,0.334397]
[1733415351943,0.08304914,101690.0,101670.0,0.501595]
[1733415352205,0.082065,101690.0,101680.0,0.167191]
[1733415352419,0.083065,101690.0,101680.0,0.167191]
[1733415352683,0.081065,101690.0,101680.0,0.1689224]
[1733415353348,0.000865,101690.0,101680.0,0.1689224]
[1733415353569,0.001865,101690.0,101680.0,0.1689224]
[1733415353988,0.001865,101690.0,101680.0,0.1709224]
[1733415354197,0.001865,101690.0,101680.0,0.42236655]
[1733415354439,0.001865,101690.0,101680.0,0.26859845]
[1733415354657,0.001865,101690.0,101680.0,0.27559845]
[1733415354863,0.001865,101690.0,101680.0,0.28916859]
[1733415355289,0.1352315,101700.0,101680.0,0.28916859]
[1733415355503,0.1352315,101700.0,101680.0,0.18948254]
[1733415355504,0.13621564,101700.0,101680.0,0.18948254]
[1733415355710,0.33288164,101700.0,101680.0,0.18949154]
[1733415355912,0.33288164,101700.0,101680.0,0.19249154]
[1733415356390,0.33288164,101700.0,101680.0,0.18949154]
[1733415356609,0.00098414,101690.0,101680.0,0.01830154]
[1733415356860,0.22456019,101690.0,101680.0,0.0137314]
[1733415357054,0.22357605,101690.0,101680.0,0.0137314]
[1733415357264,0.1239,101690.0,101680.0,0.0137314]
[1733415357493,0.12488414,101690.0,101680.0,0.0047314]
[1733415357725,0.12488414,101690.0,101680.0,0.0117314]
[1733415358209,0.12488414,101690.0,101680.0,0.0047314]
[1733415358628,0.12488414,101690.0,101680.0,0.0017314]
[1733415359688,0.12488414,101690.0,101680.0,0.0027314]
[1733415360153,0.1239,101690.0,101680.0,0.1699224]
[1733415361893,0.1239,101690.0,101680.0,0.1719224]
[1733415362760,0.1239,101690.0,101680.0,0.1709224]
[1733415363187,0.1239,101690.0,101680.0,0.1689224]
[1733415363439,0.1239,101690.0,101680.0,0.1739224]
[1733415364364,0.1352315,101700.0,101690.0,0.167174]
[1733415364586,0.1352315,101700.0,101690.0,0.31795876]
[1733415364787,0.1352315,101700.0,101690.0,0.167174]
[1733415365031,0.1352315,101700.0,101680.0,0.44077145]
[1733415365256,0.196676,101690.0,101680.0,0.0067314]
[1733415365480,0.2575315,101700.0,101680.0,0.0067314]
[1733415365694,0.2575315,101700.0,101680.0,0.1739094]
[1733415365948,0.196676,101690.0,101680.0,0.0067314]
[1733415366118,0.196676,101690.0,101680.0,0.0017314]
[1733415366552,0.2575315,101700.0,101690.0,0.005]
[1733415367011,0.2575315,101700.0,101680.0,0.3360894]
[1733415367453,0.2575315,101700.0,101680.0,0.5082694]
[1733415367677,0.2575315,101700.0,101690.0,0.167174]
[1733415367948,0.1352315,101700.0,101690.0,0.167174]
[1733415368181,0.1352315,101700.0,101690.0,0.168174]
[1733415368452,0.1352315,101700.0,101690.0,0.167174]
[1733415370238,0.1352315,101700.0,101690.0,0.172174]
[1733415372031,0.1352315,101700.0,101690.0,0.005]
[1733415372486,0.51266355,101700.0,101690.0,0.005]
[1733415372712,0.7629872,101700.0,101690.0,0.005]
[1733415372978,0.91004831,101700.0,101690.0,0.005]
[1733415373212,0.67516076,101690.0,101680.0,0.0017314]
[1733415373462,1.19505414,101690.0,101680.0,0.0017314]
[1733415373666,0.79059313,101690.0,101680.0,0.0017314]
[1733415373878,0.88851235,101690.0,101680.0,0.0017314]
[1733415374102,0.196734,101660.0,101650.0,0.0017318]
[1733415374342,0.42611005,101660.0,101650.0,0.0017318]
[1733415374795,0.57689481,101660.0,101650.0,0.0017318]
[1733415375052,0.71090409,101660.0,101650.0,0.0017318]
[1733415375295,1.32003935,101660.0,101650.0,0.0017318]
[1733415375479,1.23302003,101660.0,101650.0,0.0017318]
[1733415375714,1.19901075,101660.0,101650.0,0.0017318]
[1733415375959,1.06848177,101660.0,101650.0,0.0017318]
[1733415376432,1.19884412,101660.0,101650.0,0.0017318]
[1733415376891,1.20084412,101660.0,101650.0,0.0027318]
[1733415377095,1.20084412,101660.0,101610.0,0.01984187]
[1733415377096,0.196795,101630.0,101610.0,0.0367289]
[1733415377422,0.09967605,101630.0,101610.0,0.0367289]
[1733415377582,0.09967605,101630.0,101610.0,0.01984187]
[1733415377583,0.10066019,101630.0,101610.0,0.01984187]
[1733415378030,0.34625219,101630.0,101610.0,0.01984187]
[1733415378245,0.00098414,101620.0,101590.0,0.334657]
[1733415378469,0.00098414,101620.0,101600.0,0.334643]
[1733415378714,0.00098414,101620.0,101600.0,0.167321]
[1733415379142,0.00098414,101620.0,101610.0,0.167306]
[1733415379397,0.14946019,101630.0,101610.0,0.167306]
[1733415379640,0.14946019,101630.0,101610.0,0.170298]
[1733415379868,0.14946019,101630.0,101610.0,0.334595]
[1733415380105,0.14946019,101630.0,101610.0,0.340595]
[1733415380443,0.00098414,101620.0,101610.0,0.006]
[1733415380809,0.00098414,101620.0,101610.0,0.009]
[1733415381216,0.34527005,101630.0,101610.0,0.176306]
[1733415381217,0.14847605,101630.0,101610.0,0.176306]
[1733415381480,0.00098414,101620.0,101610.0,0.003]
[1733415381671,0.00098414,101620.0,101610.0,0.012]
[1733415382583,0.1517689,101620.0,101610.0,0.009]
[1733415382782,0.59793904,101620.0,101610.0,0.009]
[1733415383001,0.17997605,101620.0,101610.0,0.012]
[1733415383264,0.18096019,101620.0,101610.0,0.009]
[1733415383484,0.0488,101630.0,101610.0,0.009]
[1733415383764,0.00098414,101620.0,101610.0,0.167292]
[1733415384077,0.00098414,101620.0,101600.0,0.334625]
[1733415384289,0.00098414,101620.0,101610.0,0.004]
[1733415384445,0.00198414,101620.0,101610.0,0.004]
[1733415384645,0.00198414,101620.0,101600.0,0.501937]
[1733415384880,0.00198414,101620.0,101600.0,0.501935]
[1733415385040,0.00198414,101620.0,101610.0,0.006]
[1733415385291,0.00198414,101620.0,101610.0,0.173306]
[1733415385582,0.00198414,101620.0,101610.0,0.006]
[1733415385726,0.00098414,101630.0,101610.0,0.43527919]
[1733415385988,0.049,101650.0,101630.0,0.167273]
[1733415386131,0.14966019,101650.0,101630.0,0.167273]
[1733415386547,0.14966019,101650.0,101620.0,0.501833]
[1733415386772,0.34641519,101650.0,101620.0,0.334552]
[1733415387055,0.00098414,101640.0,101620.0,0.167275]
[1733415387220,0.10066019,101640.0,101630.0,0.001]
[1733415387489,0.10066019,101640.0,101610.0,0.334591]
[1733415387666,0.10066019,101640.0,101610.0,0.334592]
[1733415387874,0.10066019,101640.0,101620.0,0.171281]
[1733415388147,0.10066019,101640.0,101620.0,0.171279]
[1733415388339,0.10066019,101640.0,101620.0,0.167279]
[1733415388799,0.10066019,101640.0,101630.0,0.002]
[1733415390134,0.10066019,101640.0,101620.0,0.167288]
[1733415390339,0.04845273,101650.0,101630.0,0.167265]
[1733415390538,0.14812878,101650.0,101630.0,0.334526]
[1733415390749,0.083234,101660.0,101640.0,0.167256]
[1733415391001,0.083234,101660.0,101640.0,0.16823976]
[1733415391193,0.083234,101660.0,101640.0,0.33548876]
[1733415391899,0.083234,101660.0,101640.0,0.16823276]
[1733415392087,0.08421814,101660.0,101640.0,0.167249]
[1733415392520,0.08421814,101660.0,101640.0,0.334505]
[1733415392728,0.083234,101660.0,101640.0,0.334496]
[1733415392954,0.083234,101660.0,101640.0,0.334495]
[1733415393149,0.001734,101660.0,101650.0,0.16724]
[1733415393624,0.001734,101660.0,101650.0,0.16822365]
[1733415394703,0.001734,101660.0,101650.0,0.16724]
[1733415395156,0.001734,101660.0,101650.0,0.17222362]
[1733415395418,0.001734,101660.0,101650.0,0.27189967]
[1733415395593,0.001734,101660.0,101650.0,0.4382291]
[1733415396430,0.001734,101660.0,101650.0,0.4342291]
[1733415396676,0.001734,101660.0,101650.0,0.4422291]
[1733415396908,0.001734,101660.0,101650.0,0.4512291]
[1733415397131,0.001734,101660.0,101650.0,0.4432291]
[1733415397358,0.001734,101660.0,101650.0,0.27591605]
[1733415397772,0.001734,101660.0,101650.0,0.4432291]
[1733415398018,0.001734,101660.0,101650.0,0.4342291]
[1733415398460,0.001734,101660.0,101650.0,0.4432291]
[1733415399434,0.001734,101660.0,101650.0,0.4522291]
[1733415399873,0.001734,101660.0,101650.0,0.4432291]
[1733415400304,0.04741814,101690.0,101680.0,0.167191]
[1733415400508,0.046434,101690.0,101680.0,0.167191]
[1733415400728,0.2127315,101700.0,101690.0,0.15734]
[1733415402478,0.2127315,101700.0,101680.0,0.481887]
[1733415402910,0.2127315,101700.0,101670.0,0.314726]
[1733415402911,0.00098414,101690.0,101670.0,0.314726]
[1733415403132,0.31240755,101700.0,101680.0,0.161356]
[1733415403340,0.35740755,101700.0,101680.0,0.161348]
[1733415403547,0.35740755,101700.0,101680.0,0.314696]
[1733415403978,0.35740755,101700.0,101680.0,0.163348]
[1733415404420,0.35740755,101700.0,101680.0,0.166348]
[1733415404641,0.35740755,101700.0,101670.0,0.157361]
[1733415404860,0.55406455,101700.0,101670.0,0.314722]
[1733415405097,0.55406455,101700.0,101670.0,0.472083]
[1733415405513,0.00098414,101690.0,101670.0,0.314722]
[1733415405731,0.00098414,101690.0,101670.0,0.472085]
[1733415406404,0.55406455,101700.0,101670.0,0.472085]
[1733415406595,0.55406455,101700.0,101670.0,0.314722]
[1733415406871,0.09967605,101690.0,101670.0,0.014]
[1733415407092,0.29734419,101690.0,101670.0,0.014]
[1733415407292,0.49403219,101690.0,101670.0,0.007]
[1733415407502,0.196695,101680.0,101670.0,0.02939197]
[1733415407727,0.196695,101680.0,101670.0,0.005]
[1733415407728,0.37427105,101680.0,101670.0,0.005]
[1733415407950,0.17757605,101680.0,101670.0,0.012]
[1733415408173,0.0779,101680.0,101670.0,0.164371]
[1733415408425,0.6735565,101700.0,101670.0,0.164371]
[1733415408426,0.00098414,101690.0,101670.0,0.319735]
[1733415408631,0.00098414,101690.0,101670.0,0.319727]
[1733415409056,0.40870233,101690.0,101670.0,0.005]
[1733415409286,0.0779,101680.0,101670.0,0.005]
[1733415409498,0.07888414,101680.0,101670.0,0.005]
[1733415409741,0.0779,101680.0,101670.0,0.165371]
[1733415409955,0.00098414,101690.0,101670.0,0.317735]
[1733415410220,0.00098414,101690.0,101670.0,0.473099]
[1733415410431,0.004,101690.0,101670.0,0.316728]
[1733415410667,0.4547895,101700.0,101670.0,0.462257]
[1733415410900,0.4547895,101700.0,101680.0,0.14752]
[1733415410901,0.2581315,101700.0,101680.0,0.14752]
[1733415411305,0.00098414,101690.0,101670.0,0.155526]
[1733415411517,0.00098414,101690.0,101670.0,0.298056]